bitfinex-derivatives/quotes_SOLF0:USTF0_20240907
["timestamp","ask_amount","ask_price","bid_price","bid_amount"]
[1725690514383,3.94542216,127.44,127.4,3.9253]
[1725690515294,0.02092216,127.44,127.41,3.925]
[1725690515788,3.94552216,127.44,127.4,3.9253]
[1725690516388,3.94552216,127.44,127.41,3.9252]
[1725690518591,0.02092216,127.44,127.4,3.9255]
[1725690518992,3.94542216,127.44,127.4,3.9255]
[1725690519195,0.02092216,127.44,127.39,3.9258]
[1725690520293,3.925,127.42,127.39,3.9258]
[1725690522888,0.02092216,127.44,127.37,3.9265]
[1725690523491,3.9255,127.41,127.37,3.9265]
[1725690524792,3.9256,127.4,127.37,3.9265]
[1725690524998,0.02092216,127.44,127.35,4.0679]
[1725690525204,0.58992308,127.44,127.35,1.3321]
[1725690525590,1.3179,127.43,127.35,1.3321]
[1725690525793,3.9268,127.37,127.35,1.3321]
[1725690526994,3.927,127.36,127.32,3.9279]
[1725690530997,3.9266,127.37,127.31,1.2761]
[1725690531498,3.9266,127.37,127.33,3.9276]
[1725690536204,3.9269,127.36,127.33,3.9276]
[1725690538104,3.9266,127.37,127.33,3.9276]
[1725690539207,3.86631932,127.38,127.33,3.9276]
[1725690539506,1.3179,127.43,127.33,3.9276]
[1725690539700,0.56920157,127.42,127.33,3.9276]
[1725690540203,3.927,127.36,127.33,3.9276]
[1725690540409,7.83368755,127.36,127.33,3.9276]
[1725690540906,3.9271,127.35,127.33,3.9276]
[1725690542005,3.9271,127.35,127.32,3.9279]
[1725690544903,3.9269,127.36,127.31,1.2761]
[1725690545099,52.42506187,127.43,127.31,1.2761]
[1725690545299,3.9267,127.37,127.34,3.9274]
[1725690554521,3.91619971,127.38,127.31,1.2761]
[1725690554718,1.3179,127.43,127.31,1.2761]
[1725690555021,0.56909927,127.42,127.31,1.2761]
[1725690555407,3.9265,127.37,127.34,3.9273]
[1725690555920,3.9269,127.36,127.33,3.9276]
[1725690556220,3.85492193,127.38,127.33,3.9276]
[1725690556514,3.9267,127.37,127.33,3.9276]
[1725690558319,3.9267,127.37,127.34,3.9274]
[1725690561220,3.927,127.36,127.33,3.9276]
[1725690563126,3.9268,127.36,127.32,3.928]
[1725690567227,3.98367436,127.38,127.32,3.928]
[1725690567532,3.9271,127.35,127.32,3.928]
[1725690567725,3.99435875,127.36,127.33,3.9277]
[1725690567937,23.62,127.42,127.33,3.9277]
[1725690569235,9.65,127.39,127.33,3.9277]
[1725690569539,3.9269,127.36,127.33,3.9277]
[1725690575327,3.9266,127.37,127.33,3.9277]
[1725690576243,7.95290536,127.36,127.33,3.9277]
[1725690576427,7.95290536,127.36,127.32,13.5779]
[1725690577939,3.9272,127.35,127.32,3.9279]
[1725690578743,7.83388532,127.35,127.32,3.9279]
[1725690578939,7.83388532,127.35,127.31,5.2043]
[1725690581047,13.55668532,127.35,127.31,1.2761]
[1725690581240,13.55668532,127.35,127.3,3.9286]
[1725690581546,3.9277,127.34,127.3,3.9286]
[1725690582140,3.928,127.33,127.29,158.37824445]
[1725690584140,9.65,127.34,127.29,154.44944445]
[1725690584338,9.65,127.34,127.27,9.65]
[1725690584538,9.65,127.33,127.27,9.65]
[1725690585343,3.86163422,127.33,127.29,9.65]
[1725690585542,28.77330509,127.39,127.24,4.0526]
[1725690585543,9.65,127.36,127.3,9.65]
[1725690585844,3.9276,127.34,127.3,13.5785]
[1725690586153,13.67461054,127.36,127.3,13.5785]
[1725690586746,13.67461054,127.36,127.3,3.9285]
[1725690587551,3.9278,127.33,127.3,3.9285]
[1725690587745,4.02461054,127.36,127.3,3.9285]
[1725690587943,3.9268,127.36,127.32,9.65]
[1725690588142,3.87058854,127.35,127.32,9.65]
[1725690588652,3.87058854,127.35,127.32,13.5778]
[1725690589046,3.87058854,127.35,127.32,9.65]
[1725690589447,7.79778854,127.35,127.29,4.0966]
[1725690589642,3.9272,127.35,127.3,9.65]
[1725690589847,3.9272,127.35,127.29,4.0966]
[1725690590047,3.9272,127.35,127.31,3.9281]
[1725690590247,7.76143095,127.35,127.31,3.9281]
[1725690591653,3.9277,127.34,127.3,13.5786]
[1725690591854,3.9277,127.34,127.3,3.9286]
[1725690595158,3.9277,127.34,127.3,13.5786]
[1725690596558,3.9279,127.33,127.3,9.65]
[1725690596758,3.9279,127.33,127.29,4.0966]
[1725690597157,3.9279,127.33,127.3,3.9286]
[1725690601067,3.83423095,127.35,127.29,1.3458]
[1725690601257,9.65,127.33,127.29,1.3458]
[1725690601779,24.9005,127.39,127.29,10.9958]
[1725690601958,9.65,127.36,127.3,9.65]
[1725690602158,13.48168027,127.36,127.3,9.65]
[1725690602767,3.9272,127.35,127.31,3.9281]
[1725690602970,1.2805,127.39,127.31,9.65]
[1725690603171,10.9305,127.39,127.31,9.65]
[1725690603670,3.9266,127.37,127.31,9.65]
[1725690603862,3.9266,127.37,127.33,9.65]
[1725690603863,7.89581366,127.37,127.33,9.65]
[1725690604062,3.9266,127.37,127.33,9.65]
[1725690604260,3.9266,127.37,127.34,3.9274]
[1725690604460,9.65,127.39,127.29,8.0163184]
[1725690604461,4.71349596,127.43,127.36,9.65]
[1725690604663,0.02092216,127.44,127.34,1.2766]
[1725690604862,9.65,127.42,127.36,9.65]
[1725690605058,0.02092216,127.44,127.36,9.65]
[1725690605263,0.02092216,127.44,127.38,9.65]
[1725690605481,9.67092216,127.44,127.38,9.65]
[1725690605672,27.51771288,127.44,127.39,3.9256]
[1725690605869,0.02092216,127.44,127.39,9.65]
[1725690606285,9.67092216,127.44,127.37,9.65]
[1725690607082,3.9252,127.42,127.38,3.9259]
[1725690607382,9.67092216,127.44,127.37,9.65]
[1725690607581,3.9249,127.43,127.39,3.9259]
[1725690607771,9.67092216,127.44,127.39,3.9259]
[1725690608482,3.9247,127.43,127.39,3.9259]
[1725690609678,3.9247,127.43,127.37,9.65]
[1725690610883,3.9247,127.43,127.39,13.5757]
[1725690611485,3.94542216,127.44,127.4,3.9256]
[1725690611883,0.02092216,127.44,127.39,3.9259]
[1725690612088,9.65,127.43,127.39,3.9259]
[1725690612483,3.9252,127.42,127.38,3.9261]
[1725690612780,9.65,127.4,127.35,2.7187]
[1725690612980,9.65,127.38,127.21,7.8624]
[1725690613184,9.65,127.36,127.3,13.7375]
[1725690613593,13.577,127.36,127.32,3.928]
[1725690613890,17.56311658,127.36,127.32,3.928]
[1725690614087,3.9272,127.35,127.32,3.928]
[1725690614393,3.9272,127.35,127.31,3.9282]
[1725690614892,3.9272,127.35,127.32,3.928]
[1725690615701,3.9269,127.36,127.33,3.9277]
[1725690615885,9.65,127.38,127.31,9.65]
[1725690616194,3.8491593,127.37,127.33,9.65]
[1725690616485,3.8491593,127.37,127.33,13.5775]
[1725690616486,3.9267,127.37,127.33,13.5775]
[1725690616694,7.79275192,127.37,127.33,13.5775]
[1725690617883,7.79275192,127.37,127.33,3.9275]
[1725690618688,3.9269,127.36,127.32,3.9279]
[1725690621789,3.9271,127.35,127.32,3.9279]
[1725690622289,3.86605192,127.37,127.32,3.928]
[1725690622594,3.9268,127.37,127.31,24.12]
[1725690622892,3.93850353,127.37,127.33,3.9277]
[1725690623092,24.12,127.4,127.33,3.9277]
[1725690623293,24.12,127.38,127.3,4.0875]
[1725690623489,24.12,127.36,127.3,8.016]
[1725690623683,3.9282,127.32,127.3,1.393]
[1725690624089,3.91964962,127.33,127.3,1.393]
[1725690624289,3.9285,127.31,127.28,145.63941417]
[1725690624589,24.12,127.31,127.23,2.7147]
[1725690624788,24.12,127.31,127.14,137.04032329]
[1725690624789,3.9303,127.25,127.22,1.3775]
[1725690625195,3.92478071,127.25,127.22,1.3775]
[1725690625392,3.9311,127.23,127.19,1.3138]
[1725690625585,3.9311,127.23,127.19,5.2458]
[1725690625991,24.12,127.27,127.2,3.9315]
[1725690626394,3.9305,127.25,127.2,3.9315]
[1725690628401,3.9305,127.24,127.2,3.9315]
[1725690629199,3.9302,127.25,127.21,3.9314]
[1725690629800,3.9305,127.24,127.21,3.9314]
[1725690634802,24.12,127.27,127.22,3.9311]
[1725690634996,24.12,127.27,127.2,24.12]
[1725690634997,4.02148348,127.27,127.2,24.12]
[1725690635212,3.9295,127.28,127.24,3.9303]
[1725690635510,7.81256927,127.28,127.24,3.9303]
[1725690635803,7.81256927,127.28,127.25,3.9302]
[1725690636005,3.9291,127.29,127.23,1.3489]
[1725690636198,24.12,127.32,127.23,25.4689]
[1725690636403,24.12,127.32,127.24,1.2822]
[1725690636601,3.9288,127.3,127.26,3.9298]
[1725690637306,24.12,127.32,127.26,3.9298]
[1725690639008,3.9291,127.29,127.25,3.9302]
[1725690639804,3.9291,127.29,127.26,3.9299]
[1725690644005,3.9291,127.29,127.25,3.9301]
[1725690645507,3.96613761,127.28,127.25,3.9301]
[1725690645702,24.12,127.32,127.25,3.9301]
[1725690645904,24.12,127.3,127.25,3.9301]
[1725690646213,3.9295,127.28,127.24,5.2126]
[1725690646401,3.88359163,127.27,127.24,5.2126]
[1725690647412,3.9296,127.27,127.24,3.9304]
[1725690647616,3.94373227,127.26,127.24,3.9304]
[1725690649522,3.9294,127.28,127.25,3.9302]
[1725690650008,3.9293,127.29,127.23,1.3489]
[1725690650208,3.9293,127.29,127.26,3.9298]
[1725690656018,3.9293,127.29,127.23,11.0089]
[1725690656019,7.88964147,127.28,127.23,11.0089]
[1725690656426,3.9297,127.27,127.24,3.9303]
[1725690656634,3.9297,127.27,127.23,11.0089]
[1725690657721,3.9297,127.27,127.24,3.9303]
[1725690662028,7.88964147,127.28,127.24,3.9303]
[1725690662330,9.66,127.31,127.24,9.66]
[1725690663326,3.9289,127.3,127.26,3.9297]
[1725690663829,3.9285,127.31,127.28,3.9291]
[1725690665822,10.9996,127.34,127.27,9.66]
[1725690666215,3.9282,127.32,127.29,3.9288]
[1725690666429,10.9996,127.34,127.27,9.66]
[1725690666621,9.66,127.32,127.26,1.2994]
[1725690667921,3.94793049,127.35,127.26,1.2994]
[1725690668225,9.66,127.35,127.29,9.66]
[1725690668537,3.9279,127.33,127.3,3.9286]
[1725690669024,9.66,127.33,127.27,1.4108]
[1725690670124,4.00834512,127.32,127.27,1.4108]
[1725690670323,7.93644512,127.32,127.29,3.9289]
[1725690672631,9.66,127.31,127.24,9.66]
[1725690673027,3.9289,127.3,127.26,3.9297]
[1725690673223,9.66,127.3,127.26,3.9297]
[1725690673533,9.66,127.3,127.23,1.3489]
[1725690673831,3.9294,127.28,127.25,3.93]
[1725690676834,3.9298,127.27,127.24,3.9304]
[1725690677037,3.9298,127.27,127.23,1.3489]
[1725690678441,3.9298,127.27,127.24,3.9305]
[1725690678830,3.93,127.26,127.23,1.3489]
[1725690679336,3.93,127.26,127.23,5.2795]
[1725690679735,3.9297,127.27,127.23,5.2795]
[1725690681431,3.93,127.26,127.23,5.2795]
[1725690683335,3.9297,127.27,127.23,5.2795]
[1725690685339,3.9302,127.25,127.23,1.3489]
[1725690685640,3.9302,127.25,127.21,12.2682]
[1725690685641,3.91565484,127.24,127.16,1.3249]
[1725690685834,9.66,127.24,127.17,1.3297]
[1725690686034,7.83564808,127.23,127.19,3.9318]
[1725690686244,3.90464808,127.23,127.19,3.9318]
[1725690687435,3.9313,127.22,127.19,3.9318]
[1725690689039,27.52606959,127.31,127.21,9.66]
[1725690689341,3.83470294,127.31,127.23,9.66]
[1725690689647,3.9288,127.3,127.26,3.9297]
[1725690690139,3.9288,127.3,127.27,3.9296]
[1725690690339,17.42641275,127.31,127.27,3.9296]
[1725690691341,3.9287,127.3,127.27,3.9296]
[1725690700045,3.83791275,127.31,127.25,3.93]
[1725690700239,24.15,127.28,127.22,1.3859]
[1725690700540,28.14930669,127.28,127.22,1.3859]
[1725690700943,1.3977,127.27,127.22,1.3859]
[1725690701445,3.9305,127.24,127.22,1.3859]
[1725690702350,3.9305,127.24,127.21,3.9313]
[1725690703347,1.3977,127.27,127.22,3.9309]
[1725690704252,3.9304,127.25,127.21,3.9313]
[1725690706843,3.9305,127.24,127.21,3.9313]
[1725690708248,3.9304,127.25,127.21,3.9313]
[1725690708652,3.9305,127.25,127.21,3.9313]
[1725690709257,3.9306,127.24,127.21,3.9313]
[1725690709851,3.9306,127.24,127.2,3.9315]
[1725690710053,3.9306,127.24,127.19,24.15]
[1725690711360,3.9306,127.24,127.21,3.9313]
[1725690713964,9.67,127.26,127.22,3.931]
[1725690714674,13.6001,127.26,127.22,3.931]
[1725690714867,9.67,127.26,127.22,3.931]
[1725690715672,3.9304,127.25,127.22,3.931]
[1725690715975,9.67,127.26,127.21,3.9313]
[1725690716869,9.67,127.26,127.19,9.67]
[1725690717069,9.67,127.26,127.18,1.3635]
[1725690717070,9.67,127.23,127.18,1.3635]
[1725690717377,3.9313,127.22,127.18,1.3635]
[1725690717571,3.9313,127.22,127.19,3.9319]
[1725690723788,3.94056309,127.21,127.19,3.9319]
[1725690724691,3.94056309,127.21,127.18,5.2957]
[1725690725788,3.94056309,127.21,127.19,3.932]
[1725690725990,3.9313,127.22,127.19,3.932]
[1725690726489,3.95424249,127.21,127.19,3.932]
[1725690727991,7.88564249,127.21,127.18,5.2957]
[1725690728484,7.88564249,127.21,126.98,514.73069023]
[1725690728485,3.9338,127.14,126.98,514.73069023]
[1725690728693,9.67,127.17,127.1,9.67]
[1725690728895,2.7545,127.2,127.09,1.3342]
[1725690729094,3.9346,127.11,127.09,1.3342]
[1725690729282,13.63160116,127.12,127.09,1.3342]
[1725690729794,17.56600116,127.12,127.08,3.9355]
[1725690729990,17.56600116,127.12,127.06,11.0775]
[1725690730195,9.67,127.09,127.03,1.3342]
[1725690730697,3.9351,127.1,127.05,3.9362]
[1725690730892,7.90496597,127.1,127.05,3.9362]
[1725690731291,3.9351,127.1,127.05,3.9363]
[1725690731489,13.63278185,127.1,127.03,11.0042]
[1725690731794,13.63278185,127.1,127.03,1.3342]
[1725690731995,13.63278185,127.1,127.03,11.0042]
[1725690732892,13.63278185,127.1,127.03,1.3342]
[1725690733091,9.67,127.08,127.03,1.3342]
[1725690733294,13.6056,127.08,127.04,3.9365]
[1725690733498,9.67,127.08,127.04,3.9365]
[1725690733797,9.67,127.09,127.04,3.9365]
[1725690734503,23.59,127.18,127.04,9.67]
[1725690734693,9.67,127.14,127.07,9.67]
[1725690734884,13.52979258,127.14,127.07,9.67]
[1725690735090,3.9344,127.12,127.08,3.9353]
[1725690735291,3.85979258,127.14,127.08,3.9353]
[1725690735490,9.67,127.13,127.08,3.9353]
[1725690735690,3.99473961,127.12,127.08,3.9353]
[1725690736393,24.18,127.15,127.08,3.9353]
[1725690736589,3.9345,127.12,127.08,3.9353]
[1725690736802,3.91563975,127.11,127.08,3.9353]
[1725690737097,3.9345,127.12,127.08,3.9353]
[1725690737792,7.81196718,127.12,127.08,3.9353]
[1725690739192,3.9346,127.11,127.07,3.9356]
[1725690741701,7.81176718,127.12,127.08,3.9354]
[1725690743195,3.87746718,127.12,127.09,3.9351]
[1725690743402,24.18,127.15,127.06,24.18]
[1725690743600,24.18,127.17,127.07,1.2839]
[1725690743790,2.6367,127.19,127.09,24.18]
[1725690744102,2.6367,127.19,127.1,1.3096]
[1725690744303,3.9326,127.18,127.14,3.9334]
[1725690744497,2.6367,127.19,127.1,1.3096]
[1725690745193,24.18,127.18,127.1,1.3096]
[1725690745699,3.9331,127.16,127.12,3.9339]
[1725690746600,3.9331,127.16,127.1,1.3096]
[1725690746601,3.9331,127.16,127.13,3.9339]
[1725690748014,3.9335,127.15,127.1,1.3096]
[1725690748496,3.9335,127.15,127.11,3.9343]
[1725690749007,24.18,127.15,127.08,1.308]
[1725690749502,3.9344,127.12,127.08,5.2433]
[1725690749703,7.80041156,127.12,127.08,5.2433]
[1725690750795,3.9339,127.13,127.09,3.935]
[1725690751000,7.80974774,127.13,127.09,3.935]
[1725690752807,2.6367,127.19,127.08,29.39419499]
[1725690752808,26.8167,127.19,127.08,29.39419499]
[1725690753309,3.9333,127.15,127.11,3.9343]
[1725690754608,3.9333,127.15,127.12,3.9342]
[1725690754800,3.9331,127.16,127.12,3.9342]
[1725690754998,26.8167,127.19,127.12,3.9342]
[1725690756597,3.9333,127.16,127.12,3.9342]
[1725690756793,26.8167,127.19,127.12,3.9342]
[1725690758304,3.9335,127.15,127.12,3.9342]
[1725690758504,24.18,127.17,127.11,3.9343]
[1725690760210,3.9337,127.14,127.11,3.9343]
[1725690760400,7.82511097,127.14,127.11,3.9343]
[1725690762105,3.934,127.13,127.1,3.9348]
[1725690762408,3.89141097,127.14,127.09,1.4112]
[1725690762612,24.18,127.15,127.09,5.3462]
[1725690762804,24.18,127.15,127.05,24.18]
[1725690762805,2.714,127.14,127.05,24.18]
[1725690763011,6.71370478,127.14,127.05,24.18]
[1725690763307,3.9345,127.12,127.08,3.9353]
[1725690764109,3.9346,127.11,127.08,3.9353]
[1725690767410,3.9349,127.1,127.06,3.9358]
[1725690768213,3.9349,127.1,127.07,3.9358]
[1725690768411,3.9349,127.1,127.04,24.18]
[1725690769410,3.9349,127.1,127.06,3.9359]
[1725690771611,3.9353,127.09,127.06,3.9359]
[1725690772010,3.9353,127.09,127.05,3.9362]
[1725690774707,3.9355,127.08,127.05,3.9362]
[1725690775514,3.9355,127.08,127.04,3.9366]
[1725690780517,24.18,127.12,127.02,28.3346]
[1725690780713,24.18,127.13,127.04,24.18]
[1725690781122,24.18,127.13,127.07,3.9356]
[1725690782014,3.9349,127.1,127.07,3.9356]
[1725690782817,3.9346,127.11,127.07,3.9356]
[1725690783018,24.18,127.13,127.04,24.18]
[1725690783224,3.99970478,127.14,127.06,24.18]
[1725690783416,24.18,127.15,127.07,4.1301]
[1725690783616,3.934,127.13,127.09,3.935]
[1725690783819,3.93933519,127.13,127.07,4.1301]
[1725690784116,24.18,127.15,127.07,4.1301]
[1725690784823,3.9339,127.14,127.1,3.9348]
[1725690785027,3.86102856,127.13,127.1,3.9348]
[1725690785617,28.1134,127.15,127.11,3.9344]
[1725690785818,3.9334,127.15,127.11,3.9344]
[1725690786119,3.91887316,127.14,127.11,3.9344]
[1725690786312,24.18,127.17,127.11,3.9344]
[1725690786723,24.18,127.17,127.12,3.9342]
[1725690787217,3.9335,127.15,127.08,28.05912959]
[1725690787414,3.98222676,127.14,127.11,3.9344]
[1725690788715,7.91592676,127.14,127.11,3.9344]
[1725690791929,7.91592676,127.14,127.1,3.9347]
[1725690793627,3.934,127.13,127.09,3.9349]
[1725690796427,3.9344,127.12,127.08,3.9354]
[1725690796627,9.67,127.13,127.08,3.9354]
[1725690797030,3.9346,127.11,127.07,8.0657]
[1725690797232,3.9346,127.11,127.07,4.1301]
[1725690797535,13.6046,127.11,127.07,4.1301]
[1725690797730,13.6046,127.11,127.07,8.0656]
[1725690798530,13.65222676,127.14,127.07,13.8001]
[1725690799128,3.934,127.13,127.09,3.9349]
[1725690800034,3.934,127.13,127.1,3.9348]
[1725690800626,3.934,127.13,127.09,3.935]
[1725690801325,13.65222676,127.14,127.09,3.935]
[1725690801732,3.9342,127.13,127.09,3.935]
[1725690802429,3.9344,127.12,127.08,3.9354]
[1725690802835,3.9346,127.11,127.08,3.9354]
[1725690803735,9.67,127.09,126.99,27.54878298]
[1725690803939,9.67,127.09,127.02,11.0828]
[1725690804532,7.95868254,127.08,127.04,3.9365]
[1725690805243,3.9358,127.07,127.04,3.9365]
[1725690805431,3.9358,127.07,127.02,1.4128]
[1725690805636,3.9358,127.07,127.02,11.0828]
[1725690806242,3.9358,127.07,127.03,3.9369]
[1725690806834,7.95868254,127.08,127.03,9.67]
[1725690807235,7.95868254,127.08,127.04,3.9365]
[1725690810542,3.9358,127.07,127.04,3.9365]
[1725690810846,4.02308254,127.08,127.04,3.9365]
[1725690812446,3.9359,127.07,127.04,3.9365]
[1725690812941,3.9359,127.07,127.02,11.0828]
[1725690813136,3.9359,127.07,127.03,9.67]
[1725690814444,3.9359,127.07,127.04,3.9366]
[1725690816851,1.3985,127.12,127.02,1.4128]
[1725690817039,1.2824,127.15,127.09,9.67]
[1725690817243,3.85467506,127.14,127.09,9.67]
[1725690818055,3.9339,127.13,127.09,13.605]
[1725690819452,3.9339,127.13,127.09,3.935]
[1725690823653,3.9342,127.12,127.08,3.9353]
[1725690825855,3.934,127.13,127.08,9.67]
[1725690826659,3.934,127.13,127.09,3.9349]
[1725690826855,13.6035,127.15,127.08,13.69276599]
[1725690827057,9.67,127.16,127.09,1.3154]
[1725690827263,9.67,127.16,127.1,3.9346]
[1725690827457,9.67,127.14,127.09,1.3154]
[1725690827658,3.84449236,127.13,127.09,1.3154]
[1725690827859,9.67,127.14,127.1,3.9347]
[1725690828062,13.6038,127.14,127.1,3.9347]
[1725690828261,13.64790243,127.14,127.1,3.9347]
[1725690829369,3.9339,127.13,127.1,3.9347]
[1725690832071,3.9338,127.14,127.1,3.9347]
[1725690833378,7.87156135,127.14,127.1,3.9347]
[1725690834477,1.3923,127.17,127.1,9.67]
[1725690834669,14.99730657,127.17,127.1,9.67]
[1725690835774,11.0623,127.17,127.1,9.67]
[1725690835975,3.9334,127.15,127.12,3.934]
[1725690836175,7.8626722,127.15,127.12,3.934]
[1725690842981,7.8626722,127.15,127.09,1.3154]
[1725690842982,9.67,127.14,127.09,1.3154]
[1725690843179,9.67,127.13,127.09,1.3154]
[1725690843487,9.67,127.1,127.03,12.3878]
[1725690843687,9.67,127.1,127.04,1.3227]
[1725690844287,9.67,127.09,127.04,1.3227]
[1725690844473,9.67,127.07,127.04,1.3227]
[1725690844982,13.606,127.07,127.04,1.3227]
[1725690846188,3.9356,127.08,127.04,1.3227]
[1725690846992,3.9356,127.08,127.04,5.2594]
[1725690848794,1.3508,127.12,127.05,9.67]
[1725690849091,1.3925,127.14,127.06,9.67]
[1725690849279,3.9341,127.13,127.09,3.935]
[1725690849486,1.3925,127.14,127.09,3.935]
[1725690849890,3.934,127.13,127.09,3.935]
[1725690850092,3.934,127.13,127.09,5.2796]
[1725690850892,3.9337,127.14,127.09,1.3446]
[1725690851094,3.9337,127.14,127.09,11.0146]
[1725690851486,3.9337,127.14,127.1,3.9347]
[1725690855493,9.67,127.12,127.04,3.91175251]
[1725690855695,9.67,127.12,127.05,11.0528]
[1725690856192,3.9347,127.11,127.06,13.6058]
[1725690856388,3.9347,127.11,127.06,9.67]
[1725690857402,3.9349,127.1,127.06,9.67]
[1725690857600,9.67,127.09,127.05,1.3828]
[1725690857801,1.4071,127.14,127.03,2.7178]
[1725690857802,9.67,127.08,127.03,2.7178]
[1725690858105,3.936,127.07,127.03,6.6547]
[1725690859599,3.9364,127.06,127.03,2.7178]
[1725690861997,1.3581,127.11,127.03,12.3878]
[1725690862293,9.67,127.09,127.03,12.3878]
[1725690862497,13.6518258,127.09,127.03,12.3878]
[1725690862900,13.6518258,127.09,127.03,16.3247]
[1725690862901,3.9359,127.07,127.03,16.3247]
[1725690866102,3.9359,127.07,127.03,3.9369]
[1725690870305,3.9361,127.06,127.03,3.9369]
[1725690873408,3.9361,127.06,127.02,111.67996455]
[1725690873908,3.9364,127.05,127.02,111.67996455]
[1725690878709,9.67,127.06,127.02,1.3672]
[1725690879410,3.9366,127.05,127.02,1.3672]
[1725690880310,9.67,127.03,126.98,2.6936]
[1725690880917,13.6072,127.03,126.98,2.6936]
[1725690881113,9.67,127.01,126.95,1.3327]
[1725690881315,9.67,127.0,126.97,3.9389]
[1725690881823,3.9382,127.0,126.96,3.9392]
[1725690885419,3.8867345,127.02,126.95,1.3327]
[1725690885613,9.67,126.99,126.95,1.3327]
[1725690885818,13.62093683,126.99,126.95,1.3327]
[1725690886516,3.9388,126.98,126.95,1.3327]
[1725690886920,13.62093683,126.99,126.95,1.3327]
[1725690887118,3.9386,126.98,126.95,1.3327]
[1725690887520,13.6091,126.97,126.92,3.9403]
[1725690887714,3.95093683,126.99,126.91,1.3674]
[1725690887715,9.67,126.94,126.91,1.3674]
[1725690887919,9.67,126.93,126.85,1.4127]
[1725690888124,9.67,126.93,126.87,3.9417]
[1725690888125,9.67,126.91,126.87,3.9417]
[1725690889618,9.67,126.91,126.88,3.9417]
[1725690890022,3.9405,126.92,126.88,3.9417]
[1725690890230,28.18991065,126.93,126.86,1.3674]
[1725690890231,28.1602,126.93,126.87,3.89544528]
[1725690890423,24.22,126.93,126.86,1.3674]
[1725690890824,28.1602,126.93,126.88,3.9414]
[1725690891325,3.9397,126.95,126.88,3.93490298]
[1725690891524,3.9397,126.95,126.88,24.22]
[1725690891728,3.9397,126.95,126.89,4.03698029]
[1725690892421,3.9397,126.95,126.91,3.9406]
[1725690892917,3.9398,126.94,126.9,3.941]
[1725690894431,24.22,126.95,126.88,3.84543754]
[1725690894432,28.1595,126.95,126.88,3.84543754]
[1725690894622,28.1595,126.95,126.87,1.3929]
[1725690895224,28.1595,126.95,126.87,5.37084278]
[1725690895431,28.18296737,126.97,126.88,24.22]
[1725690895729,24.22,126.97,126.88,24.22]
[1725690896233,3.9392,126.96,126.92,3.9402]
[1725690898332,28.159,126.97,126.93,3.9401]
[1725690900226,24.22,126.99,126.89,24.22]
[1725690900426,28.07152151,126.99,126.9,1.3289]
[1725690900929,3.9386,126.98,126.93,3.94]
[1725690901133,28.07152151,126.99,126.93,3.94]
[1725690901634,3.9391,126.97,126.93,3.94]
[1725690901838,28.07152151,126.99,126.92,3.9404]
[1725690902027,3.9389,126.97,126.92,3.9404]
[1725690902333,24.22,126.95,126.9,3.9409]
[1725690902828,3.94,126.94,126.9,3.9409]
[1725690904938,28.1596,126.95,126.91,3.9407]
[1725690905126,3.97723883,126.98,126.88,25.5537]
[1725690905330,24.22,126.98,126.88,25.5537]
[1725690905629,28.08216216,126.98,126.88,25.5537]
[1725690905933,24.22,126.98,126.9,24.22]
[1725690906128,28.1588,126.98,126.9,24.22]